Cogmind - Beta 12 @@@ ROGUE MODE // 2024.01.18 @ 05:39:16 Player: Peregrine Result: Destroyed by S-10 Pest with Light Assault Rifle Performance ------------- Evolutions (0) 0 Regions Visited (1) 200 Robots Destroyed (6) 30 Value Destroyed (188) 188 Prototype IDs (0) 0 Alien Tech Used (0) 0 Bonus (0) 0 TOTAL SCORE: 418 Bonus ------- None Cogmind --------- Core Integrity 0/250 Matter 300/300 Energy 39/100 System Corruption 0% Temperature Cool (0) Movement Rolling (80) Location -10/Materials Parts ------- > --- POWER (1) -------- (None) > --- PROPULSION (2) --- Wheel > --- UTILITY (2) ------ Small Storage Unit Terrain Scanner > --- WEAPON (2) ------- Medium Laser > --- INVENTORY (8) ---- Aluminum Leg Aluminum Leg Flight Unit Peak State ------------ > --- POWER ------------ Light Ion Engine > --- PROPULSION ------- Wheel Wheel > --- UTILITY ---------- Small Storage Unit Terrain Scanner > --- WEAPON ----------- Medium Laser Assault Rifle > --- INVENTORY -------- Ion Engine Light Treads Light Treads Aluminum Leg Aluminum Leg EM Pulse Gun [Rating: 7] Favorites ----------- Power Light Ion Engine Engine Light Ion Engine Propulsion Wheel Leg Aluminum Leg Wheel Wheel Utility Small Storage Unit Device Terrain Scanner Storage Small Storage Unit Weapon Medium Laser Energy Gun Medium Laser Ballistic Gun Assault Rifle Build | -11 -10 ------- Run | Jun Mat Slots Evolved . | . . Power . | . . Propulsion . | . . Utility . | . . Weapon . | . . Parts Attached 5 | 2 3 Power 1 | . 1 Engine 1 | . 1 Core . | . . Reactor . | . . Propulsion 2 | 2 . Treads . | . . Leg . | . . Wheel 2 | 2 . Hover . | . . Flight . | . . Utility 1 | . 1 Device 1 | . 1 Storage . | . . Processor . | . . Hackware . | . . Protection . | . . Artifact . | . . Weapon 1 | . 1 Energy Gun 1 | . 1 Energy Cannon . | . . Ballistic Gun . | . . Ballistic Cannon . | . . Launcher . | . . Special Weapon . | . . Impact Weapon . | . . Slashing Weapon . | . . Piercing Weapon . | . . Special Melee Weapon . | . . Unidentified Prototypes . | . . Parts Lost 3 | . 3 Power 1 | . 1 Propulsion 1 | . 1 Utility . | . . Weapon 1 | . 1 Highest Loss Streak 2 | . 2 To Critical Strikes . | . . Average Slot Usage (%) 86 | . 86 Engine 8 | . 8 Wheel 25 | . 25 Device 11 | . 11 Storage 14 | . 14 Energy Gun 20 | . 20 Ballistic Gun 4 | . 4 Naked Turns . | . . Heaviest Build 15 | 12 15 Greatest Support 20 | 20 20 Greatest Overweight (x) . | . . Average Overweight (x) . | . . Largest Inventory Capacity 8 | 8 8 Average Capacity 8 | 8 8 Most Carried 7 | 6 7 Average Carried 4 | 6 3 Final Capacity 8 | 8 8 Final Carried 6 | 6 3 Class Distribution -------------------- 100% | Mutant Dominant Class ---------------- Mutant | -10/Materials Resources | -11 -10 ----------- Run | Jun Mat Matter Collected 240 | 220 20 Remotely . | . . Salvage Created 234 | . 234 Parts 10 | . 10 Haulers Intercepted . | . . Recyclers Shooed 2 | . 2 Parts Field Recycled . | . . Retrieved Matter . | . . Parts Self-Destructed . | . . Prevented . | . . Kills | -11 -10 ------- Run | Jun Mat Combat Hostiles Destroyed 4 | . 4 Guns 4 | . 4 Classes Destroyed 3 | . 3 Worker 1 | . 1 Builder 1 | . 1 Grunt 4 | . 4 Best Kill Streak 5 | . 5 Combat Bots Only 3 | . 3 Max Kills in Single Turn 1 | . 1 Gunslinging . | . . Exploded . | . . Melee . | . . Uniques/NPCs Destroyed . | . . Combat | -11 -10 -------- Run | Jun Mat Damage Taken 520 | . 520 Core 258 | . 258 Absorbed by Shields . | . . Core Remaining (%) 100 | 100 . Volleys Fired 31 | . 31 Largest 2 | . 2 Hottest 90 | . 90 Shots Fired 47 | . 47 Gun 47 | . 47 Cannon . | . . Launcher . | . . Special . | . . Kinetic . | . . Thermal 31 | . 31 Explosive . | . . Electromagnetic 16 | . 16 Robot Hit Streak 12 | . 12 Robot Miss Streak 4 | . 4 Penetration Max . | . . Secondary Targets 1 | . 1 Max Gunslinging Chain 1 | . 1 Shots Hit Robots 31 | . 31 Core Hits 12 | . 12 Critical Kills . | . . Critical Parts Destroyed . | . . Critical Strikes 1 | . 1 Burn 1 | . 1 Melee Attacks . | . . Impact . | . . Slashing . | . . Piercing . | . . Sneak Attacks . | . . Combat Hostiles . | . . Follow-up Attacks . | . . Damage Inflicted 500 | . 500 Guns 400 | . 400 Cannons . | . . Explosions 100 | . 100 Melee . | . . Ramming . | . . Kinetic . | . . Thermal 388 | . 388 Explosive . | . . Electromagnetic 112 | . 112 Impact . | . . Slashing . | . . Piercing . | . . Highest Corruption . | . . Average Corruption . | . . Corruption Purged . | . . Corruption Blocked . | . . Overload Shots . | . . Overflow Damage 14 | . 14 Projectiles . | . . Explosions 14 | . 14 Melee . | . . Knockbacks . | . . Impact . | . . Kinetic . | . . Secondary . | . . Self-Inflicted Damage 70 | . 70 Shots 3 | . 3 Rammed . | . . Targets Rammed . | . . Kicked . | . . Crushed . | . . Highest Temperature 249 | . 249 Average Temperature 78 | . 78 Received Heat Transfer 234 | . 234 Siege Activations . | . . Robots Corrupted . | . . Combat Hostiles . | . . Parts Fried . | . . Impact Corruptions . | . . Robots Melted . | . . Combat Hostiles . | . . Parts Melted . | . . Heat Transferred 1025 | . 1025 Parts Sabotaged . | . . Parts Stolen . | . . Parts Stripped . | . . Power Chain Reactions 3 | . 3 Missiles Intercepted . | . . Alert | -11 -10 ------- Run | Jun Mat Peak Influence 175 | . 175 Initial . | . . Average 24 | . 51 Maximum Alert Level . | . . Low Security (%) 100 | 100 100 Level 1 . | . . Level 2 . | . . Level 3 . | . . Level 4 . | . . Level 5 . | . . High Security . | . . Max Security . | . . Squads Dispatched . | . . Investigation . | . . Extermination . | . . Reinforcement . | . . Assault . | . . Garrison . | . . Intercept . | . . Searches Triggered . | . . Construction Impeded . | . . Haulers Reinforced . | . . Active Scanning Responses . | . . Cargo Convoy Interrupts . | . . Stealth | -11 -10 --------- Run | Jun Mat Distress Signals 2 | . 2 Communications Jammed . | . . Distress Signals . | . . Times Spotted 9 | . 9 Peak Tracking Total 5 | . 5 Tactical Retreats 1 | . 1 Traps | -11 -10 ------- Run | Jun Mat Traps Triggered . | . . Indirectly . | . . Trap Hack Attempts . | . . Triggered . | . . Disarmed . | . . Reprogrammed . | . . Reused . | . . Traps Extracted . | . . Installed . | . . Triggered . | . . Machines | -11 -10 ---------- Run | Jun Mat Machines Disabled 2 | . 2 Max in Single Turn 1 | . 1 Machines Repaired . | . . Machines Sabotaged . | . . Overloaded Fab Kills . | . . Hacking | -11 -10 --------- Run | Jun Mat Machines Accessed . | . . Terminals . | . . Fabricators . | . . Repair Stations . | . . Recycling Units . | . . Scanalyzers . | . . Garrison Access . | . . Total Hacks . | . . Successful . | . . Failed . | . . Catastrophic . | . . Database Lockouts . | . . Manual . | . . Terminals . | . . Fabricators . | . . Repair Stations . | . . Recycling Units . | . . Scanalyzers . | . . Garrison Access . | . . Terminal Hacks . | . . Fabricator Hacks . | . . Repair Station Hacks . | . . Recycling Unit Hacks . | . . Scanalyzer . | . . Garrison Access Hacks . | . . Unauthorized Hacks . | . . Terminals . | . . Fabricators . | . . Repair Stations . | . . Recycling Units . | . . Scanalyzers . | . . Garrison Access . | . . Data Cores Recovered . | . . Used . | . . Hacking Detections . | . . Full Trace Events . | . . Feedback Events . | . . Feedback Blocked . | . . Robot Schematics Acquired . | . . Robots Built . | . . Authchips . | . . Time . | . . Total Robot Build Rating . | . . Part Schematics Acquired . | . . Parts Built . | . . Authchips . | . . Time . | . . Total Part Build Rating . | . . Parts Repaired . | . . Time . | . . Parts Recycled . | . . Recycled Matter . | . . Retrieved Matter . | . . Retrieved Components . | . . Parts Scanalyzed . | . . Part Schematics Acquired . | . . Parts Damaged . | . . Bothacking | -11 -10 ------------ Run | Jun Mat Used RIF Installer . | . . Robots Hacked . | . . Non-combat . | . . Combat . | . . Robot Hacks Applied . | . . Relay Couplers Released . | . . Fabnet Peak Effective % . | . . Robots Rewired . | . . Allies Hacked . | . . Hacks Repelled . | . . Allies | -11 -10 -------- Run | Jun Mat Total Allies . | . . Largest Group . | . . Highest-Rated Group . | . . Highest-Rated Ally . | . . Total Orders . | . . Ally Attacks . | . . Total Damage . | . . Kills . | . . Allies Corrupted . | . . Allies Melted . | . . Intel | -11 -10 ------- Run | Jun Mat Robot Analysis Total . | . . Derelict Logs Recovered . | . . Drone Launches . | . . Drone Recoveries . | . . Exploration | -11 -10 ------------- Run | Jun Mat Turns Passed 485 | 256 229 Spaces Moved 143 | 16 127 Core . | . . Treads . | . . Legs 1 | 1 . Wheels 142 | 15 127 Hover . | . . Flight . | . . Fastest Speed 80 | 80 80 Average Speed 80 | 82 80 Slowest Speed 120 | 120 80 Overloaded Moves . | . . Propulsion Burnouts . | . . Robots Hopped . | . . Cave-ins Triggered . | . . Exploration Rate (%) 13 | 3 24 Regions Visited 1 Branch Regions . Pre-discovered Areas . | . . Known Exits Taken . | . . Unknown Exits Taken 1 | 1 . Scrap Searched . | . . Spaces Dug . | . . Terrain Destroyed 5 | . 5 Melee . | . . Projectile . | . . AOE 5 | . 5 Terrain Rammed . | . . Walls Destroyed . | . . Machines Disabled . | . . Actions | -11 -10 --------- Run | Jun Mat Total 466 | 257 209 Wait 280 | 240 40 Move 142 | 15 127 Hop . | . . Pick Up 3 | . 3 Fast Attach . | . . Attach 1 | . 1 Detach . | . . Swap 4 | 2 2 Drop 5 | . 5 Fire 31 | . 31 Melee . | . . Ram . | . . Kick . | . . Crush . | . . Escape Stasis . | . . Rewire . | . . Trap . | . . Miscellaneous . | . . Route ------- -11/Junkyard -10/Materials History --------- Turn | Location | Event 1 | -11/Junkyard | Discovered new exit (range 2) 257 | -11/Junkyard | Entered Materials 312 | -10/Materials | Build established: Mutant 440 | -10/Materials | Core integrity fell below 50% 449 | -10/Materials | Core integrity fell below 20% 486 | -10/Materials | Destroyed by S-10 Pest with Light Assault Rifle Last Messages --------------- 00444_ R-06 Scavenger collects Wheel. 00445_ U-05 Engineer lays Concrete. 00449_ U-05 Engineer builds a Wall. 00449_ G-47 Trooper destroyed. 00449_ R-06 Scavenger collects Wheel. 00449_ Wheel destroyed. 00450_ U-05 Engineer lays Concrete. 00451_ U-05 Engineer builds a Wall. 00451_ R-06 Scavenger collects Imp. Heat Sink. 00451_ U-05 Engineer lays Concrete. 00452_ U-05 Engineer builds a Wall. 00452_ U-05 Engineer lays Concrete. 00454_ R-06 Scavenger collects Heat Sink. 00455_ R-06 Scavenger collects Aluminum Leg. 00463_ G-34 Mercenary destroyed. 00463_ R-06 Scavenger collects Ion Engine. 00466_ U-05 Engineer destroyed. 00467_ R-06 Scavenger collects Wheel. 00484_ R-06 Scavenger destroyed. 00485_ Acquired Flight Unit. Map ----- +----------------------------------------------------+ | ??????????????????????????????????????????????? | | ??????????????????????????????????????????????? | | ??????????????????????????????????????????????? | | ??????????????????????????????????????????????? | | ??????????????????????????????????????????????? | | ??????????????????????????????????????????????? | | ??????????????????????????????????????????????? | | ??????????????????????????????????????????????? | | ??????????????????????????????????????????????? | | ??????????????????????????????????????????????? | | ??????????????????????????????????????????????? | | ??????????????????????????????????????????????? | | ???????????????+##############????????????????? | | ???????????????? !** ???????????????? | | ?????????????? !** ???????????????? | | ??????????? ???"" !** """??????????????? | | ?????????? """ """ ???????????? | | ???????????" """ "" ???????????? | | ??????????"T ??????????? | | ???????????? ??????????? | | ?????????????? a ??????????? | | ???????????? ?? r ?????????? | | ???????????? ???? ?????????? | | ??????????????????# ??????????? | | ?????????########## != " ?????????? | | ??????????# % [@ ????????? | | ??????????# " w??????????? | | ???#??#???# ! ?????????? | | ?########## =!* ?????????? | | ? ## r r=%=! ?????????? | | # """ ## ##############"T"## ??????????? | | # """ # %###### #??"""#??? ??????????? | | # """ # |= % / ###??##??????????????? | | # + %% # ##???????????????????? | | # """ # % # #????????????????????? | | # """ # ## #? #????????????????????? | | # """ ## ### #? #?#??????????????????? | | ? ## #?# #? #????????????????????? | | ?########## #?# #? #????????????????????? | | ????????#?# #?# #??? #????????????????????? | | ???######## #?# ######????????????????????? | | ???# # #?# # ] #?#??????????????????? | | ???# # #?# # #????????????????????? | | ???# """ + #?# # #?#??????????????????? | | ???# """ # #?# + ""#????????????????????? | | ???# """ # #?### # ""#????????????????????? | | ???# ######### # T"#?#?????"????????????? | | ???######### + + ""#????????????????????? | | ???????????# """ # # ""#????????????????????? | | ??????????## """ # # #??#?????????????????? | +----------------------------------------------------+ Best States ------------- Heat Dissipation 25 Energy Generation 10 Energy Capacity 250 Matter Stores 300 Matter Capacity 300 Sight Range 16 Terrain Scan Range 14 Terrain Scan Density 10 Evasion (%) 44 Item Schematics ----------------- None Robot Schematics ------------------ None Fabricated ------------ Nothing Alien Tech Used ----------------- None Achievements -------------- None Challenges ------------ None Game ------ Seed ShockMachineScythe Manual? 0 Play Time 00:04:21 Cumulative 78.8 hours Start 2024.01.18 @ 05:36:51 End 2024.01.18 @ 05:39:16 Sessions 1 Manual Loads 0 Difficulty Rogue Special Mode None Game No. 89 Rogue 74 Adventurer 15 Explorer 0 Win Type - Total 1 Types 0/0/1/0/0/0/0/0/0 Lore% 33 Gallery% 60 Achievement% 46 Wizard Run 0 Options --------- ASCII 0 Keyboard 0 Movement Mouse Keybinds 0 Fullscreen 2 Font 36/Smallcaps Map View 76x50 Tactical HUD 1 Map Filters NONE Filters NONE Steam 1 RUN: 0855be04-7068-4494-b74f-0a680ae32703